bitfinex/quotes_ETHUSD_20250715
["timestamp","ask_amount","ask_price","bid_price","bid_amount"]
[1752550939705,1e-08,2948.7,2948.6,18.11598316]
[1752550939882,1e-08,2948.7,2948.6,23.55998316]
[1752550940696,1e-08,2948.7,2948.6,18.11598316]
[1752550940906,1e-08,2948.7,2948.6,23.55798316]
[1752550942200,0.001,2950.1,2950.0,3.3898305]
[1752550942419,0.001,2950.1,2950.0,4.10170612]
[1752550942611,0.001,2950.1,2950.0,4.53690782]
[1752550942810,0.001,2950.1,2950.0,4.06780782]
[1752550943520,0.001,2950.1,2950.0,4.53690782]
[1752550943720,0.001,2950.1,2950.0,14.57080612]
[1752550943883,0.001,2950.1,2950.0,8.82780782]
[1752550944078,0.001,2950.1,2950.0,13.5908305]
[1752550944480,0.001,2950.1,2950.0,8.1498305]
[1752550944716,0.001,2950.1,2950.0,4.76]
[1752550944717,0.4334,2950.1,2950.0,4.76]
[1752550944938,0.4334,2950.1,2949.6,5.441]
[1752550945080,0.4334,2950.1,2949.5,3.39035671]
[1752550945081,0.8285,2949.9,2949.5,3.39033952]
[1752550945284,0.4324,2949.8,2949.3,3.39057416]
[1752550945483,0.4324,2949.7,2949.3,8.83057416]
[1752550945730,0.8184,2949.4,2948.9,3.39101058]
[1752550945939,0.8184,2949.4,2948.5,5.44]
[1752550946223,0.8184,2950.0,2948.9,0.8016]
[1752550946422,0.001,2950.1,2949.9,3.38985877]
[1752550947112,0.001,2950.1,2950.0,3.3898305]
[1752550947316,0.001,2950.1,2950.0,3.4237288]
[1752550947485,0.001,2950.1,2950.0,4.07118926]
[1752550947688,0.001,2950.1,2949.9,3.38992932]
[1752550947931,0.4334,2950.1,2949.9,3.64838559]
[1752550948235,0.4334,2950.1,2950.0,0.1688]
[1752550948619,0.9834,2950.1,2950.0,0.1688]
[1752550949198,0.55,2949.8,2949.0,1.2959]
[1752550949396,0.55,2949.8,2949.6,0.1688]
[1752550949617,0.7955,2949.9,2949.7,3.39011753]
[1752550949924,0.55,2949.8,2949.6,0.25753014]
[1752550950142,0.55,2949.8,2949.7,0.1688]
[1752550950435,0.9824,2949.8,2949.7,0.1688]
[1752550950746,0.551,2950.1,2949.7,3.5589173]
[1752550950909,0.551,2950.1,2949.7,0.1688]
[1752550950910,0.4324,2950.0,2949.7,0.1688]
[1752550951243,0.551,2950.1,2949.7,0.1688]
[1752550951539,0.001,2950.1,2949.7,3.39017527]
[1752550951734,0.001,2950.1,2949.4,0.4691]
[1752550951735,0.001,2950.1,2949.8,3.39006034]
[1752550951911,0.001,2950.1,2949.9,3.38992017]
[1752550952105,0.001,2950.1,2949.4,3.85959489]
[1752550952414,0.001,2950.1,2950.0,3.3898305]
[1752550952626,0.001,2950.1,2950.0,3.4237288]
[1752550952830,0.001,2950.1,2950.0,3.3898305]
[1752550953505,0.001,2950.1,2950.0,8.6189305]
[1752550954113,0.001,2950.1,2949.8,4.76]
[1752550954437,0.001,2950.1,2949.9,3.38983169]
[1752550954639,0.001,2950.1,2950.0,3.3898305]
[1752550955633,0.001,2950.1,2949.9,3.38989213]
[1752550955939,0.001,2950.1,2950.0,3.3898305]
[1752550956106,0.001,2950.1,2949.8,4.76]
[1752550956312,0.4334,2950.1,2949.9,3.38988131]
[1752550956509,0.4334,2950.1,2949.8,8.15005565]
[1752550956710,0.001,2950.1,2950.0,3.3898305]
[1752550956913,0.001,2950.1,2950.0,3.4237288]
[1752550957843,0.001,2950.1,2950.0,3.3898305]
[1752550958140,0.001,2950.1,2950.0,3.4237288]
[1752550958638,0.001,2950.1,2950.0,3.3898305]
[1752550959007,0.001,2950.1,2949.8,5.57500557]
[1752550959203,0.001,2950.1,2949.9,3.38986774]
[1752550959400,0.001,2950.1,2949.8,5.57500557]
[1752550959401,0.001,2950.1,2949.8,4.76]
[1752550959646,0.8218,2949.9,2949.8,4.76]
[1752550959949,1.2542,2949.9,2949.4,0.25729711]
[1752550960106,4.21182485,2949.9,2949.4,0.25729711]
[1752550960307,0.9824,2949.8,2949.0,5.436]
[1752550960506,0.9824,2949.8,2949.3,3.39057973]
[1752550961002,4.37246801,2949.8,2949.2,3.39069402]
[1752550961225,3.39027998,2949.7,2949.1,5.82651]
[1752550961420,3.9402902,2949.6,2949.5,0.1688]
[1752550961621,3.39040515,2949.5,2949.3,0.1688]
[1752550961821,0.8316,2949.4,2949.3,0.1688]
[1752550962025,0.55,2949.3,2948.7,3.3912344]
[1752550962213,3.84040086,2949.2,2948.9,0.1688]
[1752550962407,3.39080086,2949.2,2948.9,0.1688]
[1752550962629,0.4496,2949.1,2948.9,0.1688]
[1752550963199,1.0004,2949.4,2948.9,0.1688]
[1752550963422,0.7578,2949.8,2949.3,0.1688]
[1752550963644,6.1928,2949.8,2949.6,0.1688]
[1752550964222,0.4496,2949.7,2949.6,0.1688]
[1752550964719,3.83977527,2949.7,2949.6,0.1688]
[1752550964921,3.94058664,2949.4,2949.1,4.9288]
[1752550965124,5.435,2949.3,2949.1,4.9288]
[1752550965371,0.4496,2949.2,2949.1,4.9288]
[1752550965539,0.4496,2949.2,2949.1,0.1688]
[1752550966266,0.4496,2949.2,2948.8,4.76]
[1752550966473,0.4496,2949.1,2948.9,0.1688]
[1752550967446,0.4496,2949.1,2948.8,4.76]
[1752550967447,1.2145,2949.0,2948.8,4.76]
[1752550967620,1.2145,2949.0,2948.6,0.42397969]
[1752550967819,1.2145,2949.0,2948.6,3.81535607]
[1752550968153,5.435,2948.9,2948.7,3.4252049]
[1752550968357,5.435,2948.8,2948.7,3.39132499]
[1752550968762,5.8846,2948.8,2948.7,0.1688]
[1752550968964,9.94083147,2948.8,2948.5,0.1688]
[1752550969164,9.27588147,2948.8,2948.5,0.1688]
[1752550969561,5.8846,2948.8,2948.5,0.1688]
[1752550970048,0.7649,2949.0,2948.5,0.4568]
[1752550970221,5.435,2948.9,2948.8,3.39111345]
[1752550970943,5.435,2948.9,2948.7,3.56009386]
[1752550971124,5.435,2948.9,2948.7,0.1688]
[1752550971549,5.8846,2948.9,2948.7,0.1688]
[1752550971957,9.27573408,2948.9,2948.7,0.1688]
[1752550972183,0.4496,2948.8,2948.7,0.1688]
[1752550972474,5.435,2948.9,2948.7,0.1688]
[1752550972623,5.435,2948.8,2948.7,0.1688]
[1752550972824,0.7649,2949.3,2948.9,3.39102305]
[1752550973167,5.434,2949.2,2948.9,3.39102305]
[1752550973464,5.434,2949.2,2949.1,0.1688]
[1752550974281,5.434,2949.2,2949.1,3.559665]
[1752550974884,0.817,2949.6,2949.3,3.39058608]
[1752550975066,1.2666,2949.9,2949.4,3.39051797]
[1752550975235,5.434,2949.8,2949.5,0.1688]
[1752550975834,10.0,2949.7,2949.5,0.1688]
[1752550976350,10.0,2949.7,2949.5,3.55919137]
[1752550976942,10.0,2949.7,2949.5,0.1688]
[1752550977274,0.001,2951.3,2950.2,3.3896007]
[1752550977471,0.001,2951.3,2950.1,0.7761]
[1752550977472,0.001,2951.3,2950.3,0.87337007]
[1752550977647,0.001,2951.3,2950.3,0.4568]
[1752550977850,0.4496,2951.2,2950.6,3.38905541]
[1752550978051,0.4496,2951.2,2950.7,3.38902283]
[1752550978255,0.001,2951.3,2951.0,3.3885748]
[1752550978460,0.5445,2951.3,2951.2,3.38845215]
[1752550978662,0.001,2951.3,2951.2,3.38845215]
[1752550978845,5.435,2951.3,2951.2,3.38845215]
[1752550979177,5.434,2951.3,2951.2,3.38845215]
[1752550979476,5.434,2951.3,2951.1,3.38855784]
[1752550979681,5.434,2951.3,2951.2,3.38845215]
[1752550979859,5.9774,2951.3,2951.1,3.38852229]
[1752550980261,5.9774,2951.3,2951.0,0.25036258]
[1752550980453,0.8223,2951.1,2950.9,3.38878046]
[1752550980665,0.8223,2951.1,2950.9,3.38877492]
[1752550980843,0.8223,2951.1,2951.0,3.3886818]
[1752550981048,6.2553,2951.1,2951.0,3.3886818]
[1752550981444,5.433,2951.1,2951.0,3.3886818]
[1752550981777,5.432,2951.1,2951.0,3.63906979]
[1752550983047,0.001,2951.3,2951.2,3.38845215]
[1752550983243,0.001,2951.3,2951.2,3.42233667]
[1752550983461,0.001,2951.3,2951.2,3.87913667]
[1752550983754,0.001,2951.3,2951.2,3.84525215]
[1752550984966,1e-08,2951.3,2951.2,3.87913667]
[1752550985169,1e-08,2951.3,2951.2,23.48175649]
[1752550985356,1e-08,2951.3,2951.2,23.44787197]
[1752550986074,1e-08,2951.3,2951.2,15.93933521]
[1752550986247,1e-08,2951.3,2951.2,21.37033521]
[1752550986772,1e-08,2951.3,2951.2,21.92033521]
[1752550987153,1e-08,2951.3,2951.2,22.08913521]
[1752550987379,8.137,2953.0,2952.9,3.3865014]
[1752550987576,5.431,2953.2,2952.9,0.1688]
[1752550987765,0.7741,2953.4,2952.9,0.1688]
[1752550987964,11.2237,2953.4,2952.6,3.38682534]
[1752550988163,10.7741,2953.4,2953.1,0.1688]
[1752550988488,0.7741,2953.4,2953.1,0.1688]
[1752550988853,3.38615738,2953.2,2953.1,0.1688]
[1752550989049,3.83575738,2953.2,2953.1,0.1688]
[1752550989395,0.55,2953.8,2953.1,0.1688]
[1752550989396,0.7908,2955.3,2953.4,0.7524]
[1752550989617,0.7908,2954.5,2953.5,0.87064427]
[1752550989749,5.481,2954.4,2953.6,3.38560155]
[1752550990087,5.482,2954.5,2953.7,0.4568]
[1752550990249,5.482,2954.5,2953.8,0.03385469]
[1752550990450,5.482,2954.5,2953.8,10.03385469]
[1752550990676,5.483,2954.4,2954.3,3.38480434]
[1752550991052,0.8142,2954.9,2954.1,3.38512575]
[1752550991282,0.8142,2954.9,2954.2,0.03385011]
[1752550991457,0.4496,2955.0,2954.6,3.38444935]
[1752550991659,5.479,2954.9,2954.7,3.38443675]
[1752550991860,3.38407856,2955.1,2954.3,3.38480216]
[1752550992175,0.55,2954.9,2953.7,0.7511]
[1752550992382,0.001,2954.5,2953.8,0.03385469]
[1752550992562,0.001,2954.5,2954.0,3.38516398]
[1752550992770,5.477,2954.4,2954.0,3.38516398]
[1752550992967,5.477,2954.4,2953.8,10.0]
[1752550993168,3.38543863,2953.9,2953.3,0.7979]
[1752550993479,5.477,2953.8,2953.3,0.7979]
[1752550993674,3.38541811,2953.9,2953.3,0.7979]
[1752550993877,5.48,2953.8,2953.1,0.25967718]
[1752550994089,5.48,2953.8,2953.2,3.38615154]
[1752550994290,5.48,2953.8,2953.0,0.4275]
[1752550994490,0.55,2954.0,2952.9,4.14546897]
[1752550994655,5.478,2953.7,2953.0,3.38629295]
[1752550994859,8.86365898,2953.7,2953.0,3.38629295]
[1752550995177,5.477,2953.6,2953.1,3.38624852]
[1752550995381,5.477,2953.6,2953.2,0.4275]
[1752550995562,3.38567456,2953.7,2953.1,3.38624094]
[1752550995758,5.475,2953.6,2953.2,3.38614556]
[1752550996062,5.474,2953.5,2953.3,0.46136042]
[1752550996268,5.474,2953.5,2953.0,1.11865]
[1752550996589,5.474,2953.5,2952.7,3.38663543]
[1752550996767,4.17880339,2953.6,2953.0,3.38636018]
[1752550996971,5.475,2953.4,2952.8,10.0]
[1752550997168,5.475,2953.4,2952.6,3.81433999]
[1752550997496,5.475,2953.4,2952.9,3.38649531]
[1752550997671,5.475,2953.4,2952.6,0.884344]
[1752550997872,5.475,2953.4,2952.8,3.38650708]
[1752550998086,5.475,2953.4,2952.9,3.38649773]
[1752550998465,5.475,2953.4,2952.6,10.884344]
[1752550998466,5.475,2953.4,2952.8,3.38659374]
[1752550998801,6.10181,2953.4,2952.8,3.38659374]
[1752550998995,6.10181,2953.4,2952.6,1.13454462]
[1752550998996,0.55,2953.3,2952.7,0.0338673]
[1752550999295,5.469,2953.2,2952.7,0.0338673]
[1752550999494,5.469,2953.2,2952.8,0.1688]
[1752550999495,3.38647407,2953.0,2952.8,0.1688]
[1752550999871,8.85526014,2953.2,2951.0,0.38174051]
[1752550999872,0.8176,2952.9,2951.0,0.38174051]
[1752551000105,7.50853676,2952.0,2951.3,0.1688]
[1752551000397,0.55,2951.7,2951.3,0.1688]
[1752551000616,3.38807495,2951.6,2950.8,0.4275]
[1752551000928,0.45602995,2951.7,2951.0,3.38866194]
[1752551001065,5.497,2951.9,2951.4,3.38811589]
[1752551001399,10.0,2952.7,2951.5,0.46138107]
[1752551001571,0.55,2952.5,2951.5,0.4275]
[1752551001893,0.55,2952.3,2951.8,3.38769139]
[1752551002201,0.55,2952.5,2951.9,3.38763184]
[1752551002389,5.509,2952.4,2952.1,3.38740228]
[1752551002700,1.08176,2952.6,2952.3,3.38712342]
[1752551002865,0.8176,2952.8,2951.7,0.4275]
[1752551002866,0.52707263,2952.5,2951.7,0.4275]
[1752551003070,5.507,2952.4,2952.3,3.3871896]
[1752551003277,0.8176,2952.8,2952.5,3.38695238]
[1752551003478,0.8176,2952.8,2952.4,3.42092604]
[1752551003688,5.508,2952.7,2952.6,3.38684549]
[1752551004366,5.508,2952.9,2952.6,0.4275]
[1752551004563,0.833,2954.5,2952.9,3.3865014]
[1752551004768,3.38497872,2954.3,2953.1,3.38627205]
[1752551004992,3.38497872,2954.3,2953.6,3.38561622]
[1752551005189,4.08497872,2954.3,2953.7,3.38557229]
[1752551005508,0.45386787,2954.2,2953.6,3.38566164]
[1752551005710,5.535,2954.1,2953.0,0.84380014]
[1752551005892,3.38542071,2953.9,2953.2,3.38607561]
[1752551006094,3.38573008,2953.6,2953.0,3.38634006]
[1752551006605,0.832,2953.7,2953.4,3.38581765]
[1752551006806,5.535,2953.8,2953.3,3.41986626]
[1752551006983,0.001,2954.5,2954.1,3.38512575]
[1752551007200,0.001,2954.5,2954.2,3.41886128]
[1752551007523,0.001,2954.5,2954.3,3.38488616]
[1752551007822,0.001,2954.5,2954.4,3.38478202]
[1752551008528,0.001,2954.5,2954.4,3.84612984]
[1752551009308,1.2618,2954.5,2953.3,1.1119115]
[1752551009495,1.12618,2954.4,2954.0,3.38520333]
[1752551009689,1.57988,2954.4,2953.3,0.4275]
[1752551009915,3.38489659,2954.3,2953.6,3.3855943]
[1752551010110,0.55,2954.3,2953.3,0.4275]
[1752551010312,0.55,2954.1,2953.2,8.93215538]
[1752551010525,3.38553689,2953.8,2953.2,8.93215538]
[1752551010726,3.38553689,2953.8,2953.7,0.1688]
[1752551010925,3.38559663,2953.7,2953.1,3.64315651]
[1752551011138,3.38559663,2953.7,2952.9,3.38641579]
[1752551011139,3.38577944,2953.6,2952.9,3.38641579]
[1752551011431,5.46516365,2953.7,2953.3,0.1688]
[1752551011610,5.91886365,2953.7,2953.3,0.1688]
[1752551011815,1.52956518,2953.7,2953.3,3.4198205]
[1752551011991,0.8071,2953.7,2953.5,0.1688]
[1752551012204,3.38530732,2954.0,2953.4,3.38591083]
[1752551012544,3.38539364,2953.9,2953.3,3.38600405]
[1752551012746,0.55,2954.0,2953.6,0.1688]
[1752551012923,1.25729,2954.0,2953.6,0.1688]
[1752551013121,4.64253082,2954.0,2953.6,0.1688]
[1752551013322,0.4537,2953.9,2953.6,0.1688]
[1752551013511,0.55,2953.7,2953.2,3.3861447]
[1752551013711,0.55,2953.7,2953.4,0.1688]
[1752551013912,1.34433852,2953.7,2953.4,0.1688]
[1752551014111,0.4537,2953.6,2953.4,0.1688]
[1752551014332,3.83944328,2953.6,2953.2,0.1688]
[1752551014743,0.55,2953.6,2953.2,0.1688]
[1752551014932,0.4537,2953.5,2953.2,0.1688]
[1752551015138,1.3791,2953.4,2953.2,0.1688]
[1752551015323,0.55,2953.2,2952.1,3.81482382]
[1752551015523,0.55,2953.2,2952.2,3.38730438]
[1752551015848,0.55,2953.2,2952.3,0.33873044]
[1752551016009,3.93621295,2953.2,2952.6,3.38683024]
[1752551016210,0.55,2953.2,2952.5,3.38692138]
[1752551016409,3.38639976,2953.0,2952.2,0.4275]
[1752551016637,0.39363998,2953.0,2952.6,3.38683025]
[1752551016842,6.092,2953.2,2952.7,3.38662818]
[1752551017044,0.55,2953.5,2953.1,3.3861893]
[1752551017209,4.21459276,2953.8,2953.2,3.3860692]
[1752551017407,5.96345928,2953.7,2953.3,3.38603113]
[1752551017810,0.42145928,2953.7,2953.3,3.38603113]
[1752551018010,0.42145928,2953.7,2953.4,3.38592519]
[1752551018440,0.42145928,2953.7,2953.2,3.38605434]
[1752551018620,0.42145928,2953.7,2953.3,3.38601297]
[1752551019047,3.80706828,2953.7,2952.8,0.4275]
[1752551019347,3.80706828,2953.7,2953.2,3.38615112]
[1752551019348,0.42145928,2953.7,2953.2,3.38615112]
[1752551019645,0.42145928,2953.7,2953.4,3.38589447]
[1752551019864,5.95645928,2953.7,2953.4,3.38589447]
[1752551020060,5.95645928,2953.7,2953.2,3.81365163]
[1752551020061,5.95645928,2953.7,2953.5,3.38580524]
[1752551020467,3.83999711,2954.0,2953.3,3.38602241]
[1752551020468,0.001,2954.0,2953.9,3.38535495]
[1752551020640,0.001,2954.0,2953.6,0.46135698]
[1752551020844,0.001,2954.0,2953.5,3.3857941]
[1752551021044,0.001,2954.0,2953.6,3.38563028]
[1752551021359,0.001,2954.0,2953.4,3.38592808]
[1752551021546,0.001,2954.0,2953.2,1.2372]
[1752551021730,0.001,2954.0,2953.6,3.38559982]
[1752551021931,3.38624526,2954.0,2953.4,3.38585862]
[1752551022135,0.001,2954.0,2953.0,5.532]
[1752551022350,3.93536269,2953.9,2953.4,3.38587161]
[1752551022545,0.94663627,2953.8,2953.4,3.38587161]
[1752551022862,0.94663627,2953.8,2953.4,3.38586566]
[1752551023073,0.94663627,2953.8,2953.5,3.38581166]
[1752551023444,0.94663627,2953.8,2953.4,3.38588555]
[1752551023957,0.94663627,2953.8,2953.5,3.38579786]
[1752551024159,0.94663627,2953.8,2953.4,3.38590678]
[1752551024336,0.94663627,2953.8,2953.0,5.532]
[1752551024869,0.94663627,2953.8,2953.3,3.38596413]
[1752551025085,0.94663627,2953.8,2953.5,3.385781]
[1752551025237,0.9779,2953.9,2953.6,0.1688]
[1752551025584,3.93558418,2953.7,2952.8,1.69851377]
[1752551025787,0.55,2953.6,2953.3,0.1688]
[1752551026283,3.93561088,2953.7,2953.3,0.1688]
[1752551026490,0.55,2953.7,2953.3,0.1688]
[1752551026630,0.55,2953.7,2953.3,3.55479019]
[1752551027321,0.55,2953.7,2953.3,0.1688]
[1752551027913,0.55,2953.7,2952.9,5.522]
[1752551027914,0.55,2953.5,2952.9,5.51]
[1752551028087,0.55,2953.5,2953.1,0.1688]
[1752551028619,3.93583412,2953.5,2953.1,0.1688]
[1752551028825,0.9779,2953.5,2953.1,0.1688]
[1752551028971,4.36377208,2953.5,2953.1,0.1688]
[1752551029365,3.93587208,2953.5,2953.1,0.1688]
[1752551029570,4.80952023,2953.5,2953.1,0.1688]
[1752551029921,0.55,2953.3,2952.9,0.1688]
[1752551030464,3.93604275,2953.3,2952.9,0.1688]
[1752551030712,3.38622498,2953.2,2952.9,0.1688]
[1752551030886,4.36399867,2953.3,2952.9,0.1688]
[1752551031205,1.71308448,2953.3,2952.9,3.55527623]
[1752551031509,0.1688,2953.4,2953.2,3.38613911]
[1752551031803,5.503,2953.5,2953.2,0.1688]
[1752551031976,0.4279,2953.4,2952.5,1.2259]
[1752551032181,3.38604734,2953.3,2953.0,0.1688]
[1752551032384,4.40703734,2953.3,2953.0,0.1688]
[1752551032609,3.38627205,2953.1,2952.1,0.002]
[1752551032772,6.90433294,2953.0,2952.6,3.38683879]
[1752551032970,0.55,2953.1,2952.7,3.38671298]
[1752551033305,0.55,2953.1,2952.6,3.38681052]
[1752551033306,5.502,2953.0,2952.6,3.38681052]
[1752551033603,5.502,2953.0,2952.5,3.38691756]
[1752551033979,5.501,2953.0,2952.6,3.38679105]
[1752551034186,5.501,2953.0,2952.5,3.3869602]
[1752551034398,5.501,2953.0,2952.5,3.81489061]
[1752551034594,3.38572766,2953.6,2952.8,3.38654045]
[1752551034595,1.2209,2953.5,2952.8,3.38654045]
[1752551034905,0.55,2953.3,2952.6,0.428]
[1752551035110,1.2209,2953.5,2952.5,3.3868971]
[1752551035111,3.38645053,2953.0,2952.5,3.3868971]
[1752551035405,3.38645053,2953.0,2952.3,4.18501067]
[1752551035406,3.93632877,2953.1,2952.6,3.38682247]
[1752551035610,3.38638775,2953.0,2952.5,3.38690646]
[1752551035824,0.55,2953.1,2952.3,10.7979]
[1752551035995,6.045,2953.1,2952.7,3.38666941]
[1752551036375,6.045,2953.1,2952.6,3.38683204]
[1752551036686,0.55,2953.1,2952.7,3.38662523]
[1752551037009,6.042,2953.2,2953.0,0.002]
[1752551037209,6.98480978,2953.2,2953.0,0.002]
[1752551037408,3.93627205,2953.1,2953.0,0.002]
[1752551037590,0.55,2953.1,2953.0,0.002]
[1752551037784,4.36417205,2953.1,2953.0,0.002]
[1752551038110,0.9779,2953.1,2953.0,0.002]
[1752551038424,5.0301949,2953.1,2953.0,0.002]
[1752551038779,5.8366949,2953.1,2953.0,0.002]
[1752551040322,1.3565,2953.1,2953.0,0.002]
[1752551040504,6.2925,2953.1,2953.0,0.002]
[1752551041310,5.486,2953.1,2953.0,0.002]
[1752551042076,0.8105,2953.4,2953.0,0.002]
[1752551042277,3.38554254,2953.8,2953.2,3.3861093]
[1752551042523,0.55,2953.6,2953.0,0.002]
[1752551042819,1.4188,2953.6,2953.0,0.1708]
[1752551042992,4.8045603,2953.6,2953.1,3.38623791]
[1752551043317,4.8045603,2953.6,2953.0,0.1708]
[1752551043318,3.38611479,2953.3,2953.0,0.1708]
[1752551043522,4.17587205,2953.1,2953.0,0.002]
[1752551044017,4.60377205,2953.1,2953.0,0.002]
[1752551044242,0.1688,2953.2,2953.0,0.7695]
[1752551044544,0.8169,2953.9,2953.6,3.38561945]
[1752551044680,0.8169,2953.9,2953.7,3.38549276]
[1752551045158,0.8169,2953.9,2953.6,3.38561945]
[1752551045360,0.8169,2953.9,2953.7,3.38558418]
[1752551045517,6.3099,2953.9,2953.7,3.38558418]
[1752551045708,6.3099,2953.9,2953.8,3.38546956]
[1752551045912,6.3099,2953.9,2953.3,0.428]
[1752551046106,5.491,2953.8,2953.6,3.38567095]
[1752551046505,5.491,2953.8,2953.5,3.38580182]
[1752551047460,5.491,2953.8,2953.6,3.3856522]
[1752551047669,5.489,2953.9,2953.8,3.38546956]
[1752551048541,5.489,2953.9,2953.5,0.33858572]
[1752551048743,5.489,2953.9,2953.8,3.38546956]
[1752551049136,0.001,2954.0,2953.9,3.38535495]
[1752551049323,1e-08,2954.0,2953.9,3.84720849]
[1752551049645,1e-08,2954.0,2953.9,9.33620849]
[1752551049860,1e-08,2954.0,2953.9,9.30235495]
[1752551050218,1e-08,2954.0,2953.9,10.98709533]
[1752551051026,1e-08,2954.0,2953.9,21.76109533]
[1752551053936,1e-08,2954.0,2953.4,0.8048]
[1752551054132,1e-08,2954.0,2953.9,3.38535495]
[1752551054438,1e-08,2954.0,2953.9,14.34680849]
[1752551054760,1e-08,2954.0,2953.9,4.31295495]
[1752551054962,1e-08,2954.0,2953.9,0.1688]
[1752551055325,1e-08,2954.0,2953.9,3.55415495]
[1752551056882,1e-08,2954.0,2953.9,4.94748056]
[1752551057026,1e-08,2954.0,2953.9,4.9813341]
[1752551057769,1e-08,2954.0,2953.9,0.94812561]
[1752551057975,1e-08,2954.0,2953.3,0.69643127]
[1752551057976,1e-08,2954.0,2953.5,5.479]
[1752551058216,1e-08,2954.0,2953.9,3.38535495]
[1752551058509,1e-08,2954.0,2953.9,3.41920849]
[1752551058808,1e-08,2954.0,2953.9,3.86440849]
[1752551059301,1e-08,2954.0,2953.6,3.3856988]
[1752551059302,1e-08,2954.0,2953.7,5.486]
[1752551059471,0.82130001,2954.0,2953.7,5.486]
[1752551059667,0.82130001,2954.0,2953.6,3.38567876]
[1752551059897,4.20654051,2954.0,2953.5,3.38575991]
[1752551060097,0.4741,2953.9,2953.3,0.25123127]
[1752551060272,0.4741,2953.9,2953.5,3.38579696]
[1752551060467,0.82130001,2954.0,2953.4,5.482]
[1752551060686,0.82130001,2954.0,2953.6,3.38562992]
[1752551060893,0.82130001,2954.0,2953.6,3.38567179]
[1752551061836,0.4741,2953.9,2953.3,5.74115785]
[1752551062140,0.82130001,2954.0,2953.5,3.38571826]
[1752551062291,0.82130001,2954.0,2953.6,3.38564083]
[1752551062486,0.82130001,2954.0,2953.7,3.38551715]
[1752551062703,0.82130001,2954.0,2953.4,1.01931578]
[1752551063029,0.82130001,2954.0,2953.4,1.05317506]
[1752551063235,0.82130001,2954.0,2953.7,3.3854924]
[1752551063597,0.82130001,2954.0,2953.8,3.38546709]
[1752551064135,1e-08,2954.0,2953.8,3.38546709]
[1752551064423,1e-08,2954.0,2953.6,3.38562063]
[1752551064827,1e-08,2954.0,2953.6,0.4452]
[1752551065018,1e-08,2954.0,2953.7,3.38552695]
[1752551065423,1e-08,2954.0,2953.8,3.38539542]
[1752551065615,1e-08,2954.0,2953.8,0.38305954]
[1752551065817,1e-08,2954.0,2953.5,3.38576049]
[1752551065818,0.47410001,2954.0,2953.5,3.38576049]
[1752551066018,0.47410001,2954.0,2953.3,5.73115785]
[1752551066019,0.4741,2953.9,2953.4,3.38586222]
[1752551066220,0.4741,2953.9,2953.5,3.38579619]
[1752551066437,0.4741,2953.9,2953.3,8.85700807]
[1752551066438,1e-08,2954.0,2953.3,8.85700807]
[1752551066637,1e-08,2954.0,2953.3,4.39368729]
[1752551066802,4.15971018,2953.8,2953.2,3.38604746]
[1752551067003,4.15971018,2953.8,2953.3,3.38603071]
[1752551067434,3.38558894,2953.7,2953.2,3.38609782]
[1752551067736,3.85968418,2953.7,2953.0,0.002]
[1752551067946,0.55,2953.5,2953.0,0.002]
[1752551068094,3.38622258,2953.2,2953.0,0.002]
[1752551068302,4.16023482,2953.4,2953.0,0.002]
[1752551068303,3.38627205,2953.1,2953.0,0.002]
[1752551068495,0.4741,2953.1,2953.0,0.002]
[1752551068948,3.86037205,2953.1,2953.0,0.002]
[1752551069106,4.58502562,2953.1,2953.0,0.002]
[1752551070126,1.19875357,2953.1,2953.0,0.002]
[1752551070335,0.4741,2953.1,2953.0,0.002]
[1752551070647,4.41037205,2953.1,2953.0,0.002]
[1752551072149,1.0241,2953.1,2953.0,0.002]
[1752551073136,0.7742,2953.4,2953.0,0.002]
[1752551073343,5.454,2953.5,2953.0,3.83348152]
[1752551073518,5.454,2953.5,2953.1,3.38627205]
[1752551073919,5.454,2953.5,2953.1,3.3862517]
[1752551074118,5.454,2953.5,2953.0,0.4472]
[1752551074341,5.454,2953.5,2953.2,3.38612958]
[1752551074635,0.55,2953.6,2953.3,3.38602967]
[1752551074846,0.55,2953.6,2953.4,3.38584579]
[1752551075036,0.55,2953.6,2953.0,0.4472]
[1752551075334,9.38569953,2953.6,2953.1,3.3862167]
[1752551075708,6.4741,2953.6,2953.3,3.38602055]
[1752551076015,3.85991344,2953.5,2953.0,0.002]
[1752551076553,4.41008244,2953.4,2953.0,0.002]
[1752551076740,4.41006975,2953.4,2953.0,0.002]
[1752551076942,0.4741,2953.3,2953.0,0.002]
[1752551077457,0.4741,2953.2,2953.0,0.002]
[1752551078422,3.55488514,2953.3,2953.0,0.002]
[1752551078845,4.02898514,2953.3,2953.0,0.002]
[1752551079044,4.02899804,2953.3,2953.0,0.002]
[1752551079233,0.6429,2953.3,2953.0,0.002]
[1752551079445,4.02897939,2953.3,2953.0,0.002]
[1752551079866,3.38615867,2953.2,2953.0,0.002]
[1752551080048,0.4741,2953.2,2953.0,0.002]
[1752551080242,0.1688,2953.3,2953.0,0.002]
[1752551080627,0.6225,2953.3,2953.0,0.002]
[1752551081459,0.1688,2953.3,2953.0,0.002]
[1752551081627,0.1688,2953.3,2953.0,3.38834762]
[1752551081828,0.1688,2953.3,2953.0,0.002]
[1752551082451,0.1688,2953.3,2953.0,3.38832951]
[1752551082648,5.443,2953.3,2953.0,3.388335]
[1752551083060,5.443,2953.3,2953.1,3.38624917]
[1752551083266,9.5476349,2953.5,2953.0,3.38833891]
[1752551083463,10.0013349,2953.5,2953.0,3.38833891]
[1752551083763,9.5476349,2953.5,2953.0,0.002]
[1752551083968,0.4537,2953.4,2953.0,3.38837839]
[1752551084464,0.4537,2953.3,2953.0,0.002]
[1752551084651,0.4537,2953.3,2953.0,3.38838466]